[Event "Early-Titled-Tuesday-Blitz-May-07-2024"]
[Site "Chess.com"]
[Date "2024.05.07"]
[Round "5"]
[White "manitodeplomo"]
[Black "MaiqMaster"]
[Result "1-0"]
[WhiteElo "2620"]
[BlackElo "2474"]
[TimeControl "180+1"]
[EndTime "8:54:05 PDT"]
[Termination "manitodeplomo won by resignation"]

1. d4 {[%clk 0:02:55.2]} 1... d5 {[%clk 0:02:59.2]} 2. c4 {[%clk 0:02:52.8]}
2... e6 {[%clk 0:02:59.4]} 3. Nf3 {[%clk 0:02:52]} 3... Nf6 {[%clk 0:02:55.9]}
4. Nc3 {[%clk 0:02:52]} 4... dxc4 {[%clk 0:02:56]} 5. e3 {[%clk 0:02:51.4]} 5...
a6 {[%clk 0:02:55.8]} 6. Bxc4 {[%clk 0:02:51.6]} 6... b5 {[%clk 0:02:55.4]} 7.
Bb3 {[%clk 0:02:52.1]} 7... Bb7 {[%clk 0:02:54.3]} 8. O-O {[%clk 0:02:52.2]}
8... Be7 {[%clk 0:02:52.5]} 9. Re1 {[%clk 0:02:51.2]} 9... Nbd7 {[%clk
0:02:49.8]} 10. e4 {[%clk 0:02:51.2]} 10... O-O {[%clk 0:02:47.6]} 11. e5 {[%clk
0:02:51.2]} 11... Nd5 {[%clk 0:02:47.3]} 12. Nxd5 {[%clk 0:02:47.8]} 12... Bxd5
{[%clk 0:02:45.8]} 13. Bxd5 {[%clk 0:02:47.3]} 13... exd5 {[%clk 0:02:46.7]} 14.
Be3 {[%clk 0:02:33.6]} 14... Nb6 {[%clk 0:02:38.6]} 15. b3 {[%clk 0:02:30.5]}
15... Bb4 {[%clk 0:02:38.2]} 16. Re2 {[%clk 0:02:24.1]} 16... f6 {[%clk
0:02:37.8]} 17. Rc1 {[%clk 0:02:22.6]} 17... fxe5 {[%clk 0:02:33.8]} 18. Nxe5
{[%clk 0:02:22]} 18... Nd7 {[%clk 0:02:33.3]} 19. Nc6 {[%clk 0:02:17.7]} 1-0

[Event "Early-Titled-Tuesday-Blitz-May-07-2024"]
[Site "Chess.com"]
[Date "2024.05.07"]
[Round "5"]
[White "Winner_7777"]
[Black "Escudito"]
[Result "1-0"]
[WhiteElo "2582"]
[BlackElo "2331"]
[TimeControl "180+1"]
[EndTime "8:54:48 PDT"]
[Termination "Winner_7777 won by resignation"]

1. d4 {[%clk 0:02:58.7]} 1... d5 {[%clk 0:02:55.9]} 2. c4 {[%clk 0:02:59.3]}
2... e6 {[%clk 0:02:55.8]} 3. Nc3 {[%clk 0:03:00]} 3... c5 {[%clk 0:02:55.8]} 4.
cxd5 {[%clk 0:03:00.7]} 4... exd5 {[%clk 0:02:56.4]} 5. Nf3 {[%clk 0:02:58.6]}
5... Nc6 {[%clk 0:02:54.4]} 6. g3 {[%clk 0:02:58.6]} 6... Nf6 {[%clk 0:02:54.9]}
7. Bg2 {[%clk 0:02:58.9]} 7... Be7 {[%clk 0:02:54.9]} 8. O-O {[%clk 0:02:59.2]}
8... O-O {[%clk 0:02:55.5]} 9. dxc5 {[%clk 0:02:56.6]} 9... Bxc5 {[%clk
0:02:54.3]} 10. Bg5 {[%clk 0:02:57.2]} 10... d4 {[%clk 0:02:54.2]} 11. Na4
{[%clk 0:02:35.4]} 11... Be7 {[%clk 0:02:51.8]} 12. Rc1 {[%clk 0:02:34]} 12...
Re8 {[%clk 0:02:45.2]} 13. Rxc6 {[%clk 0:01:59.5]} 13... bxc6 {[%clk 0:02:43.8]}
14. Nxd4 {[%clk 0:02:00]} 14... Bd7 {[%clk 0:02:33.4]} 15. Nxc6 {[%clk
0:01:58.4]} 15... Qa5 {[%clk 0:01:54]} 16. Nxa5 {[%clk 0:01:57.5]} 1-0

[Event "Early-Titled-Tuesday-Blitz-May-07-2024"]
[Site "Chess.com"]
[Date "2024.05.07"]
[Round "5"]
[White "RojonR"]
[Black "MAGMAchess02"]
[Result "1-0"]
[WhiteElo "2546"]
[BlackElo "2240"]
[TimeControl "180+1"]
[EndTime "8:55:04 PDT"]
[Termination "RojonR won by resignation"]

1. e4 {[%clk 0:03:00.9]} 1... c6 {[%clk 0:02:57.6]} 2. Nc3 {[%clk 0:03:00.4]}
2... d5 {[%clk 0:02:57.9]} 3. Qe2 {[%clk 0:03:00.8]} 3... d4 {[%clk 0:02:51.7]}
4. Nd1 {[%clk 0:03:00.2]} 4... e5 {[%clk 0:02:52]} 5. d3 {[%clk 0:02:59]} 5...
c5 {[%clk 0:02:34.2]} 6. g3 {[%clk 0:02:57.6]} 6... Nf6 {[%clk 0:02:32.5]} 7. f4
{[%clk 0:02:56.5]} 7... Nc6 {[%clk 0:02:32.2]} 8. Nf3 {[%clk 0:02:56.5]} 8...
Be7 {[%clk 0:02:27]} 9. Nf2 {[%clk 0:02:55.2]} 9... O-O {[%clk 0:02:11.8]} 10.
f5 {[%clk 0:02:54.9]} 10... Ne8 {[%clk 0:02:07.7]} 11. g4 {[%clk 0:02:54.2]}
11... b5 {[%clk 0:02:06.6]} 12. g5 {[%clk 0:02:53.7]} 12... f6 {[%clk
0:02:05.8]} 13. g6 {[%clk 0:02:51.6]} 13... Nd6 {[%clk 0:01:49.4]} 14. gxh7+
{[%clk 0:02:49.9]} 14... Kh8 {[%clk 0:01:49.6]} 15. Nh4 {[%clk 0:02:49.5]} 15...
Nf7 {[%clk 0:01:26.8]} 16. Qh5 {[%clk 0:02:40.4]} 1-0

[Event "Early-Titled-Tuesday-Blitz-May-07-2024"]
[Site "Chess.com"]
[Date "2024.05.07"]
[Round "5"]
[White "SkinnyPuppy8"]
[Black "Denisenko_Denis"]
[Result "1-0"]
[WhiteElo "2220"]
[BlackElo "2384"]
[TimeControl "180+1"]
[EndTime "8:55:04 PDT"]
[Termination "SkinnyPuppy8 won by resignation"]

1. e4 {[%clk 0:02:59.2]} 1... e5 {[%clk 0:02:59.4]} 2. Nc3 {[%clk 0:02:59.6]}
2... Nf6 {[%clk 0:02:59.2]} 3. Bc4 {[%clk 0:03:00.1]} 3... Nxe4 {[%clk
0:02:57.5]} 4. Qh5 {[%clk 0:03:00.5]} 4... Nd6 {[%clk 0:02:56.6]} 5. Qxe5+
{[%clk 0:03:00.4]} 5... Qe7 {[%clk 0:02:53.6]} 6. Qxe7+ {[%clk 0:03:00.6]} 6...
Bxe7 {[%clk 0:02:53.3]} 7. Bb3 {[%clk 0:03:01.5]} 7... c6 {[%clk 0:02:53.1]} 8.
d4 {[%clk 0:03:01.8]} 8... Nf5 {[%clk 0:02:47.1]} 9. d5 {[%clk 0:03:02]} 9...
Nd4 {[%clk 0:02:44.8]} 10. Be3 {[%clk 0:02:57.7]} 10... Nxb3 {[%clk 0:02:44.2]}
11. axb3 {[%clk 0:02:58.6]} 11... O-O {[%clk 0:02:43.8]} 12. Rxa7 {[%clk
0:02:54.9]} 12... Rxa7 {[%clk 0:02:43.2]} 13. Bxa7 {[%clk 0:02:54.7]} 13... Na6
{[%clk 0:02:44.1]} 14. Nge2 {[%clk 0:02:45]} 14... Nb4 {[%clk 0:02:41.1]} 15.
Kd2 {[%clk 0:02:33.3]} 15... Bg5+ {[%clk 0:02:40.2]} 16. f4 {[%clk 0:02:31.3]}
16... Bf6 {[%clk 0:02:39.9]} 17. Bc5 {[%clk 0:02:24.8]} 17... Nxd5 {[%clk
0:02:31.2]} 18. Nxd5 {[%clk 0:02:05.5]} 18... cxd5 {[%clk 0:02:29.5]} 19. Bxf8
{[%clk 0:02:04.6]} 19... Kxf8 {[%clk 0:02:30.4]} 20. c3 {[%clk 0:02:03.2]} 20...
d6 {[%clk 0:02:30.3]} 21. Ra1 {[%clk 0:02:00.7]} 21... Ke7 {[%clk 0:02:28.9]}
22. Ra8 {[%clk 0:01:56.3]} 22... Kd7 {[%clk 0:02:27]} 23. Nd4 {[%clk 0:01:55.4]}
23... h6 {[%clk 0:02:21.4]} 24. Nb5 {[%clk 0:01:49.6]} 24... g5 {[%clk
0:02:17.7]} 25. Na7 {[%clk 0:01:46.1]} 1-0

[Event "Early-Titled-Tuesday-Blitz-May-07-2024"]
[Site "Chess.com"]
[Date "2024.05.07"]
[Round "5"]
[White "Zampronha1971"]
[Black "Yan_Dyomin2010"]
[Result "0-1"]
[WhiteElo "2460"]
[BlackElo "2610"]
[TimeControl "180+1"]
[EndTime "8:55:58 PDT"]
[Termination "Yan_Dyomin2010 won by resignation"]

1. e4 {[%clk 0:03:00.9]} 1... c5 {[%clk 0:03:00]} 2. Nf3 {[%clk 0:03:00.8]} 2...
Nc6 {[%clk 0:03:00.4]} 3. d4 {[%clk 0:03:01.4]} 3... cxd4 {[%clk 0:03:01.3]} 4.
Nxd4 {[%clk 0:03:01.6]} 4... Nf6 {[%clk 0:03:02]} 5. Nc3 {[%clk 0:03:01.6]} 5...
e5 {[%clk 0:03:01.7]} 6. Ndb5 {[%clk 0:03:01.6]} 6... d6 {[%clk 0:03:02.3]} 7.
Bg5 {[%clk 0:03:01.6]} 7... a6 {[%clk 0:03:02.8]} 8. Na3 {[%clk 0:03:01.5]} 8...
b5 {[%clk 0:03:03]} 9. Nd5 {[%clk 0:03:00.9]} 9... Be7 {[%clk 0:03:03.5]} 10.
Bxf6 {[%clk 0:03:01.1]} 10... Bxf6 {[%clk 0:03:04.4]} 11. c3 {[%clk 0:03:01.5]}
11... Rb8 {[%clk 0:03:03.8]} 12. Nc2 {[%clk 0:03:01.6]} 12... Bg5 {[%clk
0:03:04.2]} 13. g3 {[%clk 0:02:50.8]} 13... O-O {[%clk 0:03:03.2]} 14. Bg2
{[%clk 0:02:51.4]} 14... Be6 {[%clk 0:03:03.4]} 15. O-O {[%clk 0:02:50.1]} 15...
Ne7 {[%clk 0:02:57.5]} 16. Nce3 {[%clk 0:02:46.3]} 16... Nxd5 {[%clk 0:02:56.1]}
17. Nxd5 {[%clk 0:02:45.4]} 17... a5 {[%clk 0:02:55]} 18. Qd3 {[%clk 0:02:43.1]}
18... Qd7 {[%clk 0:02:54.1]} 19. Rfd1 {[%clk 0:02:41.5]} 19... Rfc8 {[%clk
0:02:42.8]} 20. Ne3 {[%clk 0:02:39.1]} 20... b4 {[%clk 0:02:38.7]} 21. Qxd6
{[%clk 0:02:14.1]} 21... Qxd6 {[%clk 0:02:38.3]} 22. Rxd6 {[%clk 0:02:13.3]}
22... bxc3 {[%clk 0:02:39.2]} 23. bxc3 {[%clk 0:02:13]} 23... Bxe3 {[%clk
0:02:40.1]} 24. fxe3 {[%clk 0:02:13.2]} 24... Rxc3 {[%clk 0:02:40.8]} 25. Rad1
{[%clk 0:02:05.6]} 25... g6 {[%clk 0:02:38.9]} 26. a4 {[%clk 0:01:17.3]} 26...
Ra3 {[%clk 0:02:34.7]} 27. Bf1 {[%clk 0:01:04.5]} 27... Rxa4 {[%clk 0:02:34.7]}
28. Rd8+ {[%clk 0:01:05.3]} 28... Rxd8 {[%clk 0:02:33.5]} 29. Rxd8+ {[%clk
0:01:06.2]} 29... Kg7 {[%clk 0:02:34.3]} 30. Ra8 {[%clk 0:01:02.3]} 30... Ra1
{[%clk 0:02:32.8]} 31. Kf2 {[%clk 0:01:01.9]} 31... Ra2+ {[%clk 0:02:33.1]} 32.
Kf3 {[%clk 0:01:00.8]} 32... a4 {[%clk 0:02:32]} 33. h4 {[%clk 0:00:58.9]} 33...
h5 {[%clk 0:02:31.2]} 34. Be2 {[%clk 0:00:53.8]} 34... Bg4+ {[%clk 0:02:30.7]}
0-1

[Event "Early-Titled-Tuesday-Blitz-May-07-2024"]
[Site "Chess.com"]
[Date "2024.05.07"]
[Round "5"]
[White "doctorcristian"]
[Black "pauliukevicius"]
[Result "1-0"]
[WhiteElo "2579"]
[BlackElo "2423"]
[TimeControl "180+1"]
[EndTime "8:56:01 PDT"]
[Termination "doctorcristian won by resignation"]

1. d4 {[%clk 0:02:49]} 1... Nf6 {[%clk 0:02:59.6]} 2. Nc3 {[%clk 0:02:47.4]}
2... d5 {[%clk 0:02:59.2]} 3. Bf4 {[%clk 0:02:46.7]} 3... g6 {[%clk 0:02:58.7]}
4. Qd2 {[%clk 0:02:46.4]} 4... Nbd7 {[%clk 0:02:57.4]} 5. f3 {[%clk 0:02:45.7]}
5... c5 {[%clk 0:02:55]} 6. dxc5 {[%clk 0:02:44.7]} 6... e5 {[%clk 0:02:45.8]}
7. Bg5 {[%clk 0:02:44.4]} 7... d4 {[%clk 0:02:45.7]} 8. Ne4 {[%clk 0:02:41]}
8... Bxc5 {[%clk 0:02:40.8]} 9. Bxf6 {[%clk 0:02:39.2]} 9... Nxf6 {[%clk
0:02:37.4]} 10. Nxc5 {[%clk 0:02:39.3]} 10... Qb6 {[%clk 0:02:36.1]} 11. Nb3
{[%clk 0:02:33.7]} 11... a5 {[%clk 0:02:34.9]} 12. a4 {[%clk 0:02:31.1]} 12...
Be6 {[%clk 0:02:33.6]} 13. e4 {[%clk 0:02:31.2]} 13... dxe3 {[%clk 0:02:03.6]}
14. Qc3 {[%clk 0:02:30.2]} 14... Nd7 {[%clk 0:01:55.9]} 15. Bb5 {[%clk
0:02:26.9]} 15... O-O {[%clk 0:01:56.4]} 16. Bxd7 {[%clk 0:02:18.9]} 16... Bxd7
{[%clk 0:01:57.3]} 17. Qc5 {[%clk 0:02:19.4]} 17... Qxc5 {[%clk 0:01:50.8]} 18.
Nxc5 {[%clk 0:02:19]} 18... Bf5 {[%clk 0:01:51]} 19. Ne4 {[%clk 0:02:16.1]}
19... Rfc8 {[%clk 0:01:50.4]} 20. O-O-O {[%clk 0:02:07.6]} 20... b5 {[%clk
0:01:47]} 21. Ne2 {[%clk 0:02:02.3]} 21... b4 {[%clk 0:01:44.8]} 22. Rd3 {[%clk
0:02:02.3]} 22... Rc4 {[%clk 0:01:42.9]} 23. Rxe3 {[%clk 0:02:02.1]} 23... Rac8
{[%clk 0:01:40.4]} 24. c3 {[%clk 0:02:02.4]} 24... R8c7 {[%clk 0:01:36.6]} 25.
Rd1 {[%clk 0:01:44.8]} 25... Bd7 {[%clk 0:01:33.7]} 26. b3 {[%clk 0:01:43.6]}
26... R4c6 {[%clk 0:01:33]} 27. c4 {[%clk 0:01:43.8]} 27... f5 {[%clk
0:01:32.2]} 28. Nd6 {[%clk 0:01:42]} 28... Be6 {[%clk 0:01:31.5]} 29. Rxe5
{[%clk 0:01:39.9]} 1-0

[Event "Early-Titled-Tuesday-Blitz-May-07-2024"]
[Site "Chess.com"]
[Date "2024.05.07"]
[Round "5"]
[White "ChainedDowntohell"]
[Black "Kirillov_Andrey"]
[Result "1-0"]
[WhiteElo "2585"]
[BlackElo "2435"]
[TimeControl "180+1"]
[EndTime "8:56:03 PDT"]
[Termination "ChainedDowntohell won by resignation"]

1. d4 {[%clk 0:03:00.9]} 1... Nf6 {[%clk 0:02:59.4]} 2. c4 {[%clk 0:02:59.7]}
2... g6 {[%clk 0:02:59.6]} 3. f3 {[%clk 0:02:56]} 3... Bg7 {[%clk 0:02:58.9]} 4.
e4 {[%clk 0:02:56.2]} 4... d6 {[%clk 0:02:59.6]} 5. Be3 {[%clk 0:02:55.7]} 5...
O-O {[%clk 0:02:59.8]} 6. Ne2 {[%clk 0:02:56]} 6... c5 {[%clk 0:02:58.6]} 7. d5
{[%clk 0:02:55.8]} 7... a6 {[%clk 0:02:58.2]} 8. Nec3 {[%clk 0:02:55.7]} 8...
Bd7 {[%clk 0:02:53.1]} 9. a4 {[%clk 0:02:54]} 9... b6 {[%clk 0:02:27.9]} 10. Bd3
{[%clk 0:02:51.5]} 10... e5 {[%clk 0:02:26.5]} 11. Nd2 {[%clk 0:02:44.4]} 11...
Ne8 {[%clk 0:02:20.5]} 12. h4 {[%clk 0:02:36.9]} 12... f5 {[%clk 0:02:19.4]} 13.
h5 {[%clk 0:02:36.4]} 13... fxe4 {[%clk 0:02:12.9]} 14. Ndxe4 {[%clk 0:02:32.6]}
14... Bf5 {[%clk 0:02:12]} 15. g4 {[%clk 0:02:28]} 15... Bxe4 {[%clk 0:02:00.7]}
16. Bxe4 {[%clk 0:02:22.4]} 16... Nd7 {[%clk 0:01:53.5]} 17. hxg6 {[%clk
0:02:21.2]} 17... hxg6 {[%clk 0:01:54.4]} 18. Bxg6 {[%clk 0:02:14.4]} 18... Bf6
{[%clk 0:01:37.9]} 19. Qc2 {[%clk 0:02:13.2]} 19... Bh4+ {[%clk 0:01:31.6]} 20.
Ke2 {[%clk 0:02:11.7]} 20... Ra7 {[%clk 0:01:18.9]} 21. Bh7+ {[%clk 0:02:09.2]}
21... Kh8 {[%clk 0:01:16]} 22. Bf2 {[%clk 0:01:59.4]} 22... Ndf6 {[%clk
0:01:09.1]} 23. Bg6 {[%clk 0:01:46.8]} 1-0

[Event "Early-Titled-Tuesday-Blitz-May-07-2024"]
[Site "Chess.com"]
[Date "2024.05.07"]
[Round "5"]
[White "alpope"]
[Black "Louis-Paulsen-Fan"]
[Result "1-0"]
[WhiteElo "2528"]
[BlackElo "2355"]
[TimeControl "180+1"]
[EndTime "8:56:42 PDT"]
[Termination "alpope won by resignation"]

1. e4 {[%clk 0:02:56.1]} 1... Nf6 {[%clk 0:02:59.2]} 2. Nc3 {[%clk 0:02:54.3]}
2... e5 {[%clk 0:02:58.9]} 3. Bc4 {[%clk 0:02:52.4]} 3... Nc6 {[%clk 0:02:58.1]}
4. d3 {[%clk 0:02:52.2]} 4... Na5 {[%clk 0:02:51.6]} 5. Nge2 {[%clk 0:02:42.2]}
5... Nxc4 {[%clk 0:02:50.1]} 6. dxc4 {[%clk 0:02:43.1]} 6... Be7 {[%clk
0:02:47.2]} 7. Qd3 {[%clk 0:02:33.5]} 7... d6 {[%clk 0:02:46.5]} 8. Bg5 {[%clk
0:02:31.3]} 8... Be6 {[%clk 0:02:46.3]} 9. O-O-O {[%clk 0:02:25.8]} 9... Qd7
{[%clk 0:02:31.1]} 10. Bxf6 {[%clk 0:02:19.1]} 10... Bxf6 {[%clk 0:02:29.3]} 11.
Kb1 {[%clk 0:02:08.3]} 11... O-O-O {[%clk 0:02:25.9]} 12. f3 {[%clk 0:02:00.4]}
12... h5 {[%clk 0:02:22.8]} 13. b3 {[%clk 0:02:00.3]} 13... h4 {[%clk
0:02:21.8]} 14. Nd5 {[%clk 0:02:00.5]} 14... Bg5 {[%clk 0:02:11.4]} 15. Nec3
{[%clk 0:01:55.9]} 15... c6 {[%clk 0:02:05.7]} 16. Ne3 {[%clk 0:01:54.9]} 16...
Bxe3 {[%clk 0:01:58.6]} 17. Qxe3 {[%clk 0:01:55.8]} 17... f5 {[%clk 0:01:58.6]}
18. Qxa7 {[%clk 0:01:54.3]} 18... Qc7 {[%clk 0:01:33.8]} 19. Na4 {[%clk
0:01:53.6]} 19... Rde8 {[%clk 0:01:15.5]} 20. c5 {[%clk 0:01:51.7]} 20... dxc5
{[%clk 0:00:27.6]} 21. Nb6+ {[%clk 0:01:50.3]} 1-0

[Event "Early-Titled-Tuesday-Blitz-May-07-2024"]
[Site "Chess.com"]
[Date "2024.05.07"]
[Round "5"]
[White "Manukyan_Artak"]
[Black "kidagent"]
[Result "1-0"]
[WhiteElo "2538"]
[BlackElo "2363"]
[TimeControl "180+1"]
[EndTime "8:56:44 PDT"]
[Termination "Manukyan_Artak won by resignation"]

1. e4 {[%clk 0:03:00.9]} 1... c6 {[%clk 0:02:54]} 2. d4 {[%clk 0:03:00.7]} 2...
d5 {[%clk 0:02:53.5]} 3. e5 {[%clk 0:03:01]} 3... Bf5 {[%clk 0:02:53.7]} 4. c4
{[%clk 0:03:00.8]} 4... e6 {[%clk 0:02:53]} 5. Nc3 {[%clk 0:03:00.8]} 5... Ne7
{[%clk 0:02:53.3]} 6. Nf3 {[%clk 0:02:59.9]} 6... Nd7 {[%clk 0:02:48.9]} 7. Nh4
{[%clk 0:02:59.7]} 7... dxc4 {[%clk 0:02:41.2]} 8. Bxc4 {[%clk 0:02:58.9]} 8...
Nb6 {[%clk 0:02:40.7]} 9. Bb3 {[%clk 0:02:59]} 9... Ned5 {[%clk 0:02:36.5]} 10.
Nxf5 {[%clk 0:02:58.1]} 10... exf5 {[%clk 0:02:35.9]} 11. O-O {[%clk 0:02:56]}
11... Be7 {[%clk 0:02:27.7]} 12. Qf3 {[%clk 0:02:55.9]} 12... g6 {[%clk
0:02:26]} 13. Bh6 {[%clk 0:02:51.5]} 13... Qd7 {[%clk 0:02:24.6]} 14. a4 {[%clk
0:02:40.4]} 14... Nxc3 {[%clk 0:02:15.1]} 15. bxc3 {[%clk 0:02:41.3]} 15... Nd5
{[%clk 0:02:13]} 16. c4 {[%clk 0:02:30.2]} 16... Nb4 {[%clk 0:02:09.8]} 17. d5
{[%clk 0:02:29.1]} 17... Na6 {[%clk 0:01:54.2]} 18. Rfe1 {[%clk 0:02:22.9]}
18... Nc5 {[%clk 0:01:52.3]} 19. Bc2 {[%clk 0:02:15.7]} 19... O-O-O {[%clk
0:01:49.4]} 20. d6 {[%clk 0:02:08]} 20... Bf8 {[%clk 0:01:47.3]} 21. Be3 {[%clk
0:02:04]} 21... Ne6 {[%clk 0:01:35.5]} 22. Bxa7 {[%clk 0:02:00]} 22... c5 {[%clk
0:01:24.3]} 23. a5 {[%clk 0:01:56.5]} 23... Nd4 {[%clk 0:01:13.7]} 24. Qd1
{[%clk 0:01:51.2]} 24... Qc6 {[%clk 0:01:10.9]} 25. Ba4 {[%clk 0:01:45.4]} 25...
Qa6 {[%clk 0:01:08]} 26. Bxc5 {[%clk 0:01:36.6]} 26... Ne6 {[%clk 0:01:07.9]}
27. Bb6 {[%clk 0:01:30.5]} 27... Bg7 {[%clk 0:01:07.8]} 28. Bb5 {[%clk
0:01:27.9]} 28... Qa8 {[%clk 0:01:07.1]} 29. a6 {[%clk 0:01:28.2]} 1-0

[Event "Early-Titled-Tuesday-Blitz-May-07-2024"]
[Site "Chess.com"]
[Date "2024.05.07"]
[Round "5"]
[White "Aleksandar-Topalov"]
[Black "PawnEatingZombie"]
[Result "1-0"]
[WhiteElo "2400"]
[BlackElo "2226"]
[TimeControl "180+1"]
[EndTime "8:56:54 PDT"]
[Termination "Aleksandar-Topalov won by resignation"]

1. b3 {[%clk 0:03:00.9]} 1... c5 {[%clk 0:02:57.8]} 2. Bb2 {[%clk 0:03:00.9]}
2... Nc6 {[%clk 0:02:57.9]} 3. Nf3 {[%clk 0:03:01]} 3... d6 {[%clk 0:02:57.6]}
4. d4 {[%clk 0:03:00.3]} 4... cxd4 {[%clk 0:02:57.2]} 5. Nxd4 {[%clk 0:03:00.5]}
5... Nf6 {[%clk 0:02:55.5]} 6. c4 {[%clk 0:03:00.5]} 6... g6 {[%clk 0:02:51.5]}
7. Nc3 {[%clk 0:03:00.2]} 7... Bg7 {[%clk 0:02:51.1]} 8. e3 {[%clk 0:03:00.2]}
8... O-O {[%clk 0:02:50.7]} 9. Be2 {[%clk 0:03:00.6]} 9... Bd7 {[%clk
0:02:50.2]} 10. O-O {[%clk 0:03:00.6]} 10... a6 {[%clk 0:02:43.4]} 11. Rc1
{[%clk 0:02:57.7]} 11... Rc8 {[%clk 0:02:43.4]} 12. Bf3 {[%clk 0:02:57.3]} 12...
Qb6 {[%clk 0:02:37.2]} 13. Qd2 {[%clk 0:02:41.5]} 13... Qa7 {[%clk 0:02:36.6]}
14. Nxc6 {[%clk 0:02:25.7]} 14... bxc6 {[%clk 0:02:25.6]} 15. c5 {[%clk
0:02:20.6]} 15... d5 {[%clk 0:02:11.7]} 16. Na4 {[%clk 0:02:17.4]} 16... Bg4
{[%clk 0:01:52.8]} 17. Nb6 {[%clk 0:02:10.5]} 17... Bxf3 {[%clk 0:01:51.5]} 18.
Nxc8 {[%clk 0:02:08.3]} 18... Rxc8 {[%clk 0:01:51]} 19. gxf3 {[%clk 0:02:07.6]}
19... a5 {[%clk 0:01:38.1]} 20. Kg2 {[%clk 0:01:58.9]} 20... a4 {[%clk
0:01:37.3]} 21. b4 {[%clk 0:01:59]} 21... a3 {[%clk 0:01:36.4]} 22. Bc3 {[%clk
0:01:58.8]} 22... Nd7 {[%clk 0:01:26]} 23. Bxg7 {[%clk 0:01:55.9]} 23... Kxg7
{[%clk 0:01:26.9]} 24. b5 {[%clk 0:01:54.5]} 24... Nxc5 {[%clk 0:01:12.9]} 25.
bxc6 {[%clk 0:01:51.8]} 25... Rxc6 {[%clk 0:01:07.8]} 26. Qxd5 {[%clk
0:01:51.1]} 26... Qc7 {[%clk 0:01:03.2]} 27. Rc3 {[%clk 0:01:43.3]} 27... e6
{[%clk 0:01:03.1]} 28. Qd4+ {[%clk 0:01:40.8]} 28... e5 {[%clk 0:00:58.4]} 29.
Qd5 {[%clk 0:01:40.7]} 29... Qe7 {[%clk 0:00:41.8]} 30. Qxc6 {[%clk 0:01:38.2]}
30... Qg5+ {[%clk 0:00:41.9]} 31. Kh1 {[%clk 0:01:38.3]} 1-0

[Event "Early-Titled-Tuesday-Blitz-May-07-2024"]
[Site "Chess.com"]
[Date "2024.05.07"]
[Round "5"]
[White "rikchessmx"]
[Black "agvega14"]
[Result "1-0"]
[WhiteElo "2393"]
[BlackElo "2181"]
[TimeControl "180+1"]
[EndTime "8:56:57 PDT"]
[Termination "rikchessmx won on time"]

1. e4 {[%clk 0:02:57.9]} 1... c5 {[%clk 0:02:57.1]} 2. Nf3 {[%clk 0:02:57.3]}
2... a6 {[%clk 0:02:56.7]} 3. d4 {[%clk 0:02:58.2]} 3... cxd4 {[%clk 0:02:56.9]}
4. Nxd4 {[%clk 0:02:59.1]} 4... Nf6 {[%clk 0:02:57.5]} 5. Nc3 {[%clk 0:02:59.1]}
5... e5 {[%clk 0:02:56.6]} 6. Nb3 {[%clk 0:02:58.3]} 6... d6 {[%clk 0:02:56.1]}
7. Bd3 {[%clk 0:02:58]} 7... Be6 {[%clk 0:02:56.8]} 8. O-O {[%clk 0:02:58]} 8...
Be7 {[%clk 0:02:57.5]} 9. f4 {[%clk 0:02:57.1]} 9... Qc7 {[%clk 0:02:56.2]} 10.
f5 {[%clk 0:02:57.4]} 10... Bc4 {[%clk 0:02:55.8]} 11. Bg5 {[%clk 0:02:54.5]}
11... Nbd7 {[%clk 0:02:54.9]} 12. Qf3 {[%clk 0:02:51]} 12... h6 {[%clk 0:02:54]}
13. Bh4 {[%clk 0:02:50.2]} 13... b5 {[%clk 0:02:49.9]} 14. Nd2 {[%clk
0:02:47.8]} 14... Nb6 {[%clk 0:02:33.5]} 15. Rac1 {[%clk 0:02:43.7]} 15... Rc8
{[%clk 0:02:18.5]} 16. b3 {[%clk 0:02:42.5]} 16... Bxd3 {[%clk 0:01:23.6]} 17.
cxd3 {[%clk 0:02:38.3]} 17... Qb7 {[%clk 0:01:22.5]} 18. Ne2 {[%clk 0:02:16.8]}
18... O-O {[%clk 0:00:47.3]} 19. Bf2 {[%clk 0:02:15.9]} 19... d5 {[%clk
0:00:43.1]} 20. g4 {[%clk 0:02:14]} 20... dxe4 {[%clk 0:00:40.4]} 21. Nxe4
{[%clk 0:02:13.6]} 21... Nbd5 {[%clk 0:00:35.6]} 22. h4 {[%clk 0:02:10]} 22...
Qa8 {[%clk 0:00:08.8]} 23. g5 {[%clk 0:02:09.5]} 23... Nxe4 {[%clk 0:00:03.6]}
24. dxe4 {[%clk 0:02:08.4]} 24... Nb4 {[%clk 0:00:03.4]} 25. f6 {[%clk 0:02:07]}
25... Bd6 {[%clk 0:00:02.6]} 26. fxg7 {[%clk 0:02:05.5]} 26... Kxg7 {[%clk
0:00:02.7]} 27. Qf6+ {[%clk 0:02:04.9]} 1-0

[Event "Early-Titled-Tuesday-Blitz-May-07-2024"]
[Site "Chess.com"]
[Date "2024.05.07"]
[Round "5"]
[White "viditchess"]
[Black "Nitzan_Steinberg"]
[Result "1-0"]
[WhiteElo "3126"]
[BlackElo "2928"]
[TimeControl "180+1"]
[EndTime "8:56:58 PDT"]
[Termination "viditchess won by resignation"]

1. d4 {[%clk 0:03:00.9]} 1... d5 {[%clk 0:02:59.3]} 2. Nf3 {[%clk 0:03:01]} 2...
Nf6 {[%clk 0:02:59.5]} 3. Bf4 {[%clk 0:03:00.4]} 3... e6 {[%clk 0:03:00.1]} 4.
e3 {[%clk 0:03:00.5]} 4... Bd6 {[%clk 0:03:00.4]} 5. Nbd2 {[%clk 0:02:59.7]}
5... O-O {[%clk 0:03:00.7]} 6. Bd3 {[%clk 0:02:59.2]} 6... c5 {[%clk 0:03:01]}
7. c3 {[%clk 0:02:59]} 7... Qc7 {[%clk 0:03:00.8]} 8. Bxd6 {[%clk 0:02:54.6]}
8... Qxd6 {[%clk 0:03:00.9]} 9. Ne5 {[%clk 0:02:55.5]} 9... b6 {[%clk
0:02:54.1]} 10. Qe2 {[%clk 0:02:54.4]} 10... a5 {[%clk 0:02:53.7]} 11. f4 {[%clk
0:02:46.7]} 11... Ba6 {[%clk 0:02:53.4]} 12. Bxa6 {[%clk 0:02:46.2]} 12... Nxa6
{[%clk 0:02:53.5]} 13. g4 {[%clk 0:02:41.3]} 13... Ne4 {[%clk 0:02:46.6]} 14.
Nxe4 {[%clk 0:02:38.2]} 14... dxe4 {[%clk 0:02:47]} 15. g5 {[%clk 0:02:30]}
15... Nc7 {[%clk 0:02:19.6]} 16. Rd1 {[%clk 0:02:20.2]} 16... Nd5 {[%clk
0:02:13.4]} 17. dxc5 {[%clk 0:01:39.7]} 17... Qxc5 {[%clk 0:02:11.5]} 18. Rd4
{[%clk 0:01:37.8]} 18... Rfd8 {[%clk 0:01:58.5]} 19. Kf2 {[%clk 0:01:37.6]}
19... b5 {[%clk 0:01:39.1]} 20. Rhd1 {[%clk 0:01:36.4]} 20... Qb6 {[%clk
0:01:27.1]} 21. Rxe4 {[%clk 0:01:29.7]} 21... b4 {[%clk 0:01:10]} 22. c4 {[%clk
0:01:25.4]} 22... Ne7 {[%clk 0:01:10.3]} 23. Red4 {[%clk 0:01:18.6]} 23... Rxd4
{[%clk 0:01:09.5]} 24. Rxd4 {[%clk 0:01:15.4]} 24... Nf5 {[%clk 0:01:07.5]} 25.
Rd7 {[%clk 0:01:12.7]} 25... Rd8 {[%clk 0:01:02.7]} 26. c5 {[%clk 0:01:10.4]}
26... Qb8 {[%clk 0:00:59.7]} 27. Nc6 {[%clk 0:01:08.7]} 1-0